fUSD/lending_fUSD_20240619
["ID","MTS","AMOUNT","RATE_DAILY","PERIOD"]
[329858618,1718766654308,-503.0455701,0.00013898,2]
[329858619,1718766654318,-500.0,0.00013898,2]
[329858620,1718766654328,-500.0,0.00013898,2]
[329858621,1718766654337,-151.0,0.00013898,2]
[329858622,1718766654347,-500.0,0.00013898,2]
[329858623,1718766654356,-926.224186,0.00013898,2]
[329858624,1718766654366,-500.0,0.00013898,2]
[329858625,1718766654375,-500.0,0.00013898,2]
[329858626,1718766654385,-500.0,0.00013898,2]
[329858627,1718766654395,-926.224186,0.00013898,2]
[329858628,1718766654405,-500.0,0.00013898,2]
[329858629,1718766654414,-500.0,0.00013898,2]
[329858630,1718766654423,-500.0,0.00013898,2]
[329858631,1718766654432,-500.0,0.00013898,2]
[329858632,1718766654441,-500.0,0.00013898,2]
[329858633,1718766654451,-500.0,0.00013898,2]
[329858634,1718766654460,-500.0,0.00013898,2]
[329858635,1718766654470,-645.21,0.00013898,2]
[329858636,1718766654480,-500.0,0.00013898,2]
[329858637,1718766654489,-500.0,0.00013898,2]
[329858638,1718766654499,-500.0,0.00013898,2]
[329858639,1718766654509,-500.0,0.00013898,2]
[329858640,1718766654519,-500.0,0.00013898,2]
[329858641,1718766654528,-500.0,0.00013898,2]
[329858642,1718766654537,-500.0,0.00013898,2]
[329858643,1718766654547,-500.0,0.00013898,2]
[329858644,1718766654556,-500.0,0.00013898,2]
[329858645,1718766654565,-1040.23,0.00013898,2]
[329858646,1718766654575,-500.0,0.00013898,2]
[329858647,1718766654585,-896.25,0.00013898,2]
[329858648,1718766654594,-500.0,0.00013898,2]
[329858649,1718766654604,-509.24,0.00013898,2]
[329858650,1718766654614,-151.0,0.00013898,2]
[329858651,1718766654623,-880.13,0.00013898,2]
[329858652,1718766654633,-500.0,0.00013898,2]
[329858653,1718766654642,-151.0,0.00013898,2]
[329858654,1718766654651,-151.0,0.00013898,2]
[329858655,1718766654661,-545.34,0.00013898,2]
[329858656,1718766654670,-292.356062,0.00013898,2]
[329858657,1718766654680,-562.23451203,0.00013898,2]
[329858658,1718766654689,-151.0,0.00013898,2]
[329858659,1718766654699,-633.66,0.00013898,2]
[329858660,1718766654708,-151.0,0.00013898,2]
[329858661,1718766654719,-500.0,0.00013898,2]
[329858662,1718766654728,-500.0,0.00013898,2]
[329858663,1718766654739,-1121.73,0.00013898,2]
[329858664,1718766654750,-151.0,0.00013898,2]
[329858665,1718766654764,-500.0,0.00013898,2]
[329858666,1718766654774,-500.0,0.00013898,2]
[329858667,1718766654783,-519.71,0.00013898,2]
[329858668,1718766654792,-500.0,0.00013898,2]
[329858669,1718766654802,-1267.1,0.00013898,2]
[329858670,1718766654811,-500.0,0.00013898,2]
[329858671,1718766654820,-500.0,0.00013898,2]
[329858672,1718766654830,-500.0,0.00013899,2]
[329858673,1718766654841,-500.0,0.00013899,2]
[329858674,1718766654852,-500.0,0.00013899,2]
[329858675,1718766654861,-500.0,0.00013899,2]
[329858676,1718766654870,-500.0,0.00013899,2]
[329858677,1718766654880,-500.0,0.00013899,2]
[329858678,1718766654889,-500.0,0.00013899,2]
[329858679,1718766654898,-1418.67,0.00013899,2]
[329858680,1718766654908,-1246.79,0.00013899,2]
[329858681,1718766654918,-500.0,0.00013899,2]
[329858682,1718766654927,-500.0,0.00013899,2]
[329858683,1718766654937,-871.57,0.00013899,2]
[329858684,1718766654947,-500.0,0.00013899,2]
[329858685,1718766654957,-681.43,0.00013899,2]
[329858686,1718766654968,-502.38359627,0.00013899,2]
[329858687,1718766654977,-500.0,0.00013899,2]
[329858688,1718766654987,-1200.37,0.00013899,2]
[329858689,1718766654995,-500.0,0.00013899,2]
[329858690,1718766655005,-500.0,0.00013899,2]
[329858691,1718766655015,-597.87,0.00013899,2]
[329858692,1718766655025,-1043.35,0.00013899,2]
[329858693,1718766655034,-500.0,0.00013899,2]
[329858694,1718766655044,-500.0,0.00013899,2]
[329858695,1718766655053,-734.45,0.00013899,2]
[329858696,1718766655063,-500.0,0.00013899,2]
[329858697,1718766655072,-1061.11,0.00013899,2]
[329858698,1718766655082,-500.0,0.00013899,2]
[329858699,1718766655092,-589.43,0.00013899,2]
[329858700,1718766655102,-500.0,0.00013899,2]
[329858701,1718766655112,-528.63,0.00013899,2]
[329858702,1718766655121,-500.0,0.00013899,2]
[329858703,1718766655132,-626.48680121,0.00013899,2]
[329858704,1718766655142,-1585.99,0.00013899,2]
[329858705,1718766655152,-500.0,0.00013899,2]
[329858706,1718766655162,-1361.62,0.00013899,2]
[329858707,1718766655172,-1457.05,0.00013899,2]
[329858708,1718766655181,-500.0,0.00013899,2]
[329858709,1718766655191,-500.0,0.00013899,2]
[329858710,1718766655201,-500.0,0.00013899,2]
[329858711,1718766655210,-500.0,0.00013899,2]
[329858712,1718766655221,-593.41,0.00013899,2]
[329858713,1718766655231,-500.0,0.00013899,2]
[329858714,1718766655240,-500.0,0.00013899,2]
[329858715,1718766655250,-500.0,0.00013899,2]
[329858716,1718766655259,-500.0,0.00013899,2]
[329858717,1718766655270,-500.0,0.00013899,2]
[329858718,1718766655279,-500.0,0.00013899,2]
[329858719,1718766655288,-1185.81,0.00013899,2]
[329858720,1718766655297,-1795.44,0.00013899,2]
[329858721,1718766655307,-500.0,0.00013899,2]
[329858722,1718766655317,-500.0,0.00013899,2]
[329858723,1718766655327,-500.0,0.00013899,2]
[329858724,1718766655337,-433.88266476,0.00013899,2]
[329858725,1718766655346,-500.0,0.00013899,2]
[329858726,1718766655357,-870.06,0.00013899,2]
[329858727,1718766655367,-920.47,0.00013899,2]
[329858728,1718766655377,-500.0,0.00013899,2]
[329858729,1718766655386,-500.0,0.00013899,2]
[329858730,1718766655396,-500.0,0.00013899,2]
[329858731,1718766655406,-1035.47,0.00013899,2]
[329858732,1718766655415,-724.01,0.00013899,2]
[329858733,1718766655426,-1038.92,0.00013899,2]
[329858734,1718766655436,-893.36,0.00013899,2]
[329858735,1718766655445,-500.0,0.00013899,2]
[329858736,1718766655455,-500.0,0.00013899,2]
[329858737,1718766655464,-500.0,0.00013899,2]
[329858738,1718766655475,-716.6,0.00013899,2]
[329858739,1718766655484,-851.3,0.00013899,2]
[329858740,1718766655493,-682.34,0.00013899,2]
[329858741,1718766655503,-843.48,0.00013899,2]
[329858742,1718766655513,-971.22,0.00013899,2]
[329858743,1718766655522,-500.0,0.00013899,2]
[329858744,1718766655531,-500.0,0.00013899,2]
[329858745,1718766655541,-500.0,0.00013899,2]
[329858746,1718766655551,-526.65,0.00013899,2]
[329858747,1718766655561,-1430.74,0.00013899,2]
[329858748,1718766655570,-500.0,0.00013899,2]
[329858749,1718766655579,-500.0,0.00013899,2]
[329858750,1718766655589,-718.96,0.00013899,2]
[329858751,1718766655599,-500.0,0.00013899,2]
[329858752,1718766655608,-500.0,0.00013899,2]
[329858753,1718766655619,-500.0,0.00013899,2]
[329858754,1718766655629,-500.0,0.00013899,2]
[329858755,1718766655639,-500.0,0.00013899,2]
[329858756,1718766655648,-500.0,0.00013899,2]
[329858757,1718766655657,-500.0,0.00013899,2]
[329858758,1718766655667,-500.0,0.00013899,2]
[329858759,1718766655676,-500.0,0.00013899,2]
[329858760,1718766655686,-583.48,0.00013899,2]
[329858761,1718766655696,-500.0,0.00013899,2]
[329858762,1718766655705,-518.13953576,0.00013899,2]
[329858763,1718766655715,-722.72,0.00013899,2]
[329858764,1718766655725,-1206.29,0.00013899,2]
[329858765,1718766655735,-529.15276168,0.00013899,2]
[329858766,1718766655745,-500.0,0.00013899,2]
[329858767,1718766655756,-284.05425347,0.00013899,2]
[329858768,1718766655921,-789.4,0.00013899,2]
[329858769,1718766655932,-592.40002906,0.00013899,2]
[329858770,1718766655942,-500.0,0.00013899,2]
[329858771,1718766655952,-500.0,0.00013899,2]
[329858772,1718766655962,-500.0,0.00013899,2]
[329858773,1718766655972,-500.0,0.00013899,2]
[329858774,1718766655982,-500.0,0.00013899,2]
[329858775,1718766655991,-500.0,0.00013899,2]
[329858776,1718766656000,-500.0,0.00013899,2]
[329858777,1718766656010,-500.0,0.00013899,2]
[329858778,1718766656019,-500.0,0.00013899,2]
[329858779,1718766656029,-500.0,0.00013899,2]
[329858780,1718766656039,-500.0,0.00013899,2]
[329858781,1718766656048,-500.0,0.00013899,2]
[329858782,1718766656057,-685.38,0.00013899,2]
[329858783,1718766656067,-507.94,0.00013899,2]
[329858784,1718766656076,-500.0,0.00013899,2]
[329858785,1718766656086,-1358.29,0.00013899,2]
[329858786,1718766656095,-500.0,0.00013899,2]
[329858787,1718766656106,-500.0,0.00013899,2]
[329858788,1718766656115,-739.7,0.00013899,2]
[329858789,1718766656124,-500.0,0.00013899,2]
[329858790,1718766656134,-500.0,0.00013899,2]
[329858791,1718766656143,-500.0,0.00013899,2]
[329858792,1718766656152,-500.0,0.00013899,2]
[329858793,1718766656162,-736.89,0.00013899,2]
[329858794,1718766656172,-638.46,0.00013899,2]
[329858795,1718766656183,-500.0,0.00013899,2]
[329858796,1718766656192,-1003.78,0.00013899,2]
[329858797,1718766656202,-500.0,0.00013899,2]
[329858798,1718766656211,-500.0,0.00013899,2]
[329858799,1718766656221,-1295.17,0.00013899,2]
[329858800,1718766656230,-500.0,0.00013899,2]
[329858801,1718766656239,-285.714464,0.00013899,2]
[329858802,1718766656249,-523.46236715,0.00013899,2]
[329858803,1718766656258,-500.0,0.00013899,2]
[329858804,1718766656269,-500.0,0.00013899,2]
[329858805,1718766656279,-500.0,0.00013899,2]
[329858806,1718766656289,-500.0,0.00013899,2]
[329858807,1718766656298,-500.0,0.00013899,2]
[329858808,1718766656307,-500.0,0.00013899,2]
[329858809,1718766656316,-500.0,0.00013899,2]
[329858810,1718766656325,-500.0,0.00013899,2]
[329858811,1718766656334,-500.0,0.00013899,2]
[329858812,1718766656343,-821.12,0.00013899,2]
[329858813,1718766656352,-500.0,0.00013899,2]
[329858814,1718766656361,-500.0,0.00013899,2]
[329858815,1718766656370,-500.0,0.00013899,2]
[329858816,1718766656379,-500.0,0.00013899,2]
[329858817,1718766656389,-200.89007,0.00013899,2]
[329858818,1718766656398,-200.89007,0.00013899,2]
[329858819,1718766656407,-500.0,0.00013899,2]
[329858820,1718766656416,-500.0,0.00013899,2]
[329858821,1718766656425,-500.0,0.00013899,2]
[329858822,1718766656435,-1055.35,0.00013899,2]
[329858823,1718766656444,-500.0,0.00013899,2]
[329858824,1718766656453,-500.0,0.00013899,2]
[329858825,1718766656464,-711.22,0.00013899,2]
[329858826,1718766656475,-500.0,0.00013899,2]
[329858827,1718766656485,-1148.96,0.00013899,2]
[329858828,1718766656494,-802.91962774,0.00013899,2]
[329858829,1718766656505,-728.65892072,0.00013938,2]
[329858830,1718766656515,-103676.3001279,0.00013966,2]
[329858831,1718766656524,-526.90512032,0.00013968,2]
[329858832,1718766656534,-526.90512033,0.00013968,2]
[329858833,1718766656544,-500.0,0.00013972,2]
[329858834,1718766656560,-151.0,0.00013972,2]
[329858835,1718766656570,-229.575527,0.00013972,2]
[329858836,1718766656581,-290.659102,0.00013973,2]
[329858837,1718766656591,-4123.84,0.00013976,2]
[329858838,1718766656603,-155.38037637,0.00013977,2]
[329858839,1718766656613,-538.51048453,0.00013977,2]
[329858840,1718766656623,-500.0,0.00013977,2]
[329858841,1718766656634,-2419.77,0.00013977,2]
[329858842,1718766656644,-500.0,0.00013977,2]
[329858843,1718766656655,-821.12,0.00013977,2]
[329858844,1718766656665,-4123.84,0.00013977,2]
[329858845,1718766656676,-501.38360215,0.00013978,2]
[329858846,1718766656686,-533.45860974,0.00013978,2]
[329858847,1718766656696,-500.0,0.00013978,2]
[329858848,1718766656706,-500.0,0.00013978,2]
[329858849,1718766656716,-508.66750338,0.00013978,2]
[329858850,1718766656727,-500.0,0.00013978,2]
[329858851,1718766656737,-500.0,0.00013978,2]
[329858852,1718766656746,-500.0,0.00013978,2]
[329858853,1718766656759,-507.47628795,0.00013978,2]
[329858854,1718766656771,-500.0,0.00013978,2]
[329858855,1718766656781,-500.0,0.00013978,2]
[329858856,1718766656792,-515.62260414,0.00013978,2]
[329858857,1718766656803,-500.0,0.00013978,2]
[329858858,1718766656813,-500.0,0.00013978,2]
[329858859,1718766656824,-298.15162162,0.00013978,2]
[329858860,1718766656834,-500.0,0.00013978,2]
[329858861,1718766656847,-500.0,0.00013978,2]
[329858862,1718766656858,-500.0,0.00013978,2]
[329858863,1718766656868,-500.0,0.00013978,2]
[329858864,1718766656878,-500.0,0.00013978,2]
[329858865,1718766656889,-500.0,0.00013978,2]
[329858866,1718766656899,-544.99644958,0.00013978,2]
[329858867,1718766656910,-500.0,0.00013978,2]
[329858868,1718766656922,-500.0,0.00013978,2]
[329858869,1718766656932,-500.0,0.00013978,2]
[329858870,1718766656943,-500.0,0.00013978,2]
[329858871,1718766656952,-500.0,0.00013978,2]
[329858872,1718766656963,-324.29081175,0.00013978,2]
[329858873,1718766656974,-501.12685787,0.00013978,2]
[329858874,1718766656985,-500.0,0.00013978,2]
[329858875,1718766656995,-500.0,0.00013978,2]
[329858876,1718766657006,-500.0,0.00013978,2]
[329858877,1718766657017,-500.0,0.00013978,2]
[329858878,1718766657037,-500.0,0.00013978,2]
[329858879,1718766657053,-500.0,0.00013978,2]
[329858880,1718766657073,-500.0,0.00013978,2]
[329858881,1718766657093,-500.0,0.00013978,2]
[329858882,1718766657113,-500.0,0.00013978,2]
[329858883,1718766657133,-500.0,0.00013978,2]
[329858884,1718766657154,-500.0,0.00013978,2]
[329858885,1718766657169,-170.51027149,0.00013978,2]
[329858886,1718766657189,-501.30410573,0.00013978,2]
[329858887,1718766657207,-500.0,0.00013978,2]
[329858888,1718766657230,-500.0,0.00013978,2]
[329858889,1718766657244,-500.0,0.00013978,2]
[329858890,1718766657260,-500.0,0.00013978,2]
[329858891,1718766657276,-500.56971917,0.00013978,2]
[329858892,1718766657297,-500.0,0.00013978,2]
[329858893,1718766657314,-500.0,0.00013978,2]
[329858894,1718766657331,-500.0,0.00013978,2]
[329858895,1718766657353,-500.0,0.00013978,2]
[329858896,1718766657373,-500.0,0.00013978,2]
[329858897,1718766657393,-500.0,0.00013978,2]
[329858898,1718766657411,-500.0,0.00013978,2]
[329858899,1718766657428,-500.0,0.00013978,2]
[329858900,1718766657446,-500.0,0.00013978,2]
[329858901,1718766657463,-480.41240013,0.00013978,2]
[329858902,1718766657481,-500.0,0.00013978,2]
[329858903,1718766657498,-500.0,0.00013978,2]
[329858904,1718766657513,-560.28026607,0.00013978,2]
[329858905,1718766657529,-460.93630174,0.00013978,2]
[329858906,1718766657545,-500.70150683,0.00013978,2]
[329858907,1718766657567,-577.91503215,0.00013978,2]
[329858908,1718766657582,-513.0303227,0.00013978,2]
[329858909,1718766657597,-500.0,0.00013978,2]
[329858910,1718766657612,-200.0,0.00013978,2]
[329858911,1718766657626,-500.0,0.00013978,2]
[329858912,1718766657641,-500.0,0.00013978,2]
[329858913,1718766657656,-519.99804443,0.00013978,2]
[329858914,1718766657671,-500.0,0.00013978,2]
[329858915,1718766657688,-500.0,0.00013978,2]
[329858916,1718766657702,-500.0,0.00013978,2]
[329858917,1718766657718,-500.0,0.00013978,2]
[329858918,1718766657732,-500.0,0.00013978,2]
[329858919,1718766657747,-503.01609883,0.00013978,2]
[329858920,1718766657765,-502.21643371,0.00013978,2]
[329858921,1718766657780,-514.26021066,0.00013978,2]
[329858922,1718766657796,-506.75672381,0.00013978,2]
[329858923,1718766657810,-500.0,0.00013978,2]
[329858924,1718766657828,-500.0,0.00013978,2]
[329858925,1718766657846,-539.89806255,0.00013978,2]
[329858926,1718766657863,-393.99789828,0.00013978,2]
[329858927,1718766657878,-505.2907946,0.00013978,2]
[329858928,1718766657893,-207.58916522,0.00013978,2]
[329858929,1718766657909,-205.26809226,0.00013978,2]
[329858930,1718766657925,-500.0,0.00013978,2]
[329858931,1718766657942,-500.0,0.00013978,2]
[329858932,1718766657957,-221.91290594,0.00013978,2]
[329858933,1718766657972,-569.77873158,0.00013978,2]
[329858934,1718766658000,-500.0,0.00013978,2]
[329858935,1718766658025,-490.79668374,0.00013978,2]
[329858936,1718766658048,-500.0,0.00013978,2]
[329858937,1718766658066,-500.0,0.00013978,2]
[329858938,1718766658086,-500.0,0.00013978,2]
[329858939,1718766658106,-500.0,0.00013978,2]
[329858940,1718766658125,-500.0,0.00013978,2]
[329858941,1718766658141,-500.0,0.00013978,2]
[329858942,1718766658158,-500.0,0.00013978,2]
[329858943,1718766658175,-520.98140907,0.00013978,2]
[329858944,1718766658191,-500.0,0.00013978,2]
[329858945,1718766658207,-500.0,0.00013978,2]
[329858946,1718766658223,-500.0,0.00013978,2]
[329858947,1718766658238,-510.86094879,0.00013978,2]
[329858948,1718766658254,-500.0,0.00013978,2]
[329858949,1718766658270,-500.0,0.00013978,2]
[329858950,1718766658286,-500.58176333,0.00013978,2]
[329858951,1718766658301,-499.33046544,0.00013978,2]
[329858952,1718766658316,-500.0,0.00013978,2]
[329858953,1718766658331,-500.0,0.00013978,2]
[329858954,1718766658347,-341.87696938,0.00013978,2]
[329858955,1718766658363,-500.0,0.00013978,2]
[329858956,1718766658380,-309.66674004,0.00013978,2]
[329858957,1718766658395,-501.38316625,0.00013978,2]
[329858958,1718766658414,-500.0,0.00013978,2]
[329858959,1718766658429,-500.0,0.00013978,2]
[329858960,1718766658444,-500.0,0.00013978,2]
[329858961,1718766658459,-500.0,0.00013978,2]
[329858962,1718766658474,-276.80002851,0.00013978,2]
[329858963,1718766658489,-500.0,0.00013978,2]
[329858964,1718766658504,-544.78374267,0.00013978,2]
[329858965,1718766658519,-500.0,0.00013978,2]
[329858966,1718766658535,-500.0,0.00013978,2]
[329858967,1718766658552,-500.0,0.00013978,2]
[329858968,1718766658567,-500.0,0.00013978,2]
[329858969,1718766658584,-500.0,0.00013978,2]
[329858970,1718766658599,-412.47262243,0.00013978,2]
[329858971,1718766658614,-500.0,0.00013978,2]
[329858972,1718766658629,-151.0,0.00013978,2]
[329858973,1718766658644,-151.0,0.00013978,2]
[329858974,1718766658659,-1000.0,0.00013978,2]
[329858975,1718766658675,-500.0,0.00013978,2]
[329858976,1718766658689,-500.0,0.00013978,2]
[329858977,1718766658704,-500.0,0.00013978,2]
[329858978,1718766658720,-500.0,0.00013978,2]
[329858979,1718766658736,-156.155745,0.00013978,2]
[329858980,1718766658751,-156.155745,0.00013978,2]
[329858981,1718766658769,-500.0,0.00013978,2]
[329858982,1718766658785,-500.0,0.00013978,2]
[329858983,1718766658801,-500.0,0.00013978,2]
[329858984,1718766658816,-500.0,0.00013978,2]
[329858985,1718766658831,-500.0,0.00013978,2]
[329858986,1718766658848,-500.0,0.00013978,2]
[329858987,1718766658863,-500.0,0.00013978,2]
[329858988,1718766658879,-2103.38,0.00013978,2]
[329858989,1718766659179,-500.0,0.00013978,2]
[329858990,1718766659188,-2259.49,0.00013978,2]
[329858991,1718766659198,-500.0,0.00013978,2]
[329858992,1718766659207,-2138.91,0.00013978,2]
[329858993,1718766659216,-500.0,0.00013978,2]
[329858994,1718766659226,-500.0,0.00013978,2]
[329858995,1718766659235,-500.0,0.00013978,2]
[329858996,1718766659245,-500.0,0.00013978,2]
[329858997,1718766659254,-500.0,0.00013978,2]
[329858998,1718766659264,-246.90267936,0.00013978,2]
[329858999,1718766659273,-500.0,0.00013978,2]
[329859000,1718766659282,-500.0,0.00013978,2]
[329859001,1718766659291,-500.66440394,0.00013978,2]
[329859002,1718766659300,-504.69918626,0.00013978,2]
[329859003,1718766659309,-500.0,0.00013978,2]
[329859004,1718766659319,-1002.79,0.00013978,2]
[329859005,1718766659327,-549.9772734,0.00013978,2]
[329859006,1718766659337,-500.0,0.00013978,2]
[329859007,1718766659346,-1500.51,0.00013978,2]
[329859008,1718766659355,-544.28257525,0.00013978,2]
[329859009,1718766659366,-1285.05,0.00013978,2]
[329859010,1718766659375,-500.0,0.00013978,2]
[329859011,1718766659384,-500.0,0.00013978,2]
[329859012,1718766659393,-151.0,0.00013978,2]
[329859013,1718766659402,-245.50878,0.00013978,2]
[329859014,1718766659411,-954.24,0.00013978,2]
[329859015,1718766659421,-500.0,0.00013978,2]
[329859016,1718766659430,-979.69,0.00013978,2]
[329859017,1718766659439,-500.0,0.00013978,2]
[329859018,1718766659448,-1418.43,0.00013978,2]
[329859019,1718766659457,-501.88200857,0.00013978,2]
[329859020,1718766659467,-500.0,0.00013978,2]
[329859021,1718766659478,-2518.24,0.00013978,2]
[329859022,1718766659487,-217.19220562,0.00013978,2]
[329859023,1718766659496,-959.35,0.00013978,2]
[329859024,1718766659505,-500.0,0.00013978,2]
[329859025,1718766659514,-500.0,0.00013978,2]
[329859026,1718766659523,-500.0,0.00013978,2]
[329859027,1718766659534,-501.19240259,0.00013978,2]
[329859028,1718766659544,-500.0,0.00013978,2]
[329859029,1718766659554,-899.85,0.00013978,2]
[329859030,1718766659563,-654.67,0.00013978,2]
[329859031,1718766659574,-500.0,0.00013978,2]
[329859032,1718766659585,-500.0,0.00013978,2]
[329859033,1718766659595,-500.0,0.00013978,2]
[329859034,1718766659606,-500.0,0.00013978,2]
[329859035,1718766659617,-500.0,0.00013978,2]
[329859036,1718766659627,-1848.92,0.00013978,2]
[329859037,1718766659637,-502.23975122,0.00013978,2]
[329859038,1718766659648,-151.0,0.00013978,2]
[329859039,1718766659660,-2172.52,0.00013978,2]
[329859040,1718766659671,-151.0,0.00013978,2]
[329859041,1718766659683,-500.0,0.00013978,2]
[329859042,1718766659692,-348.52256624,0.00013978,2]
[329859043,1718766659702,-1389.54,0.00013978,2]
[329859044,1718766659711,-675.63,0.00013978,2]
[329859045,1718766659719,-500.0,0.00013978,2]
[329859046,1718766659730,-2170.38,0.00013978,2]
[329859047,1718766659739,-500.0,0.00013978,2]
[329859048,1718766659750,-500.0,0.00013978,2]
[329859049,1718766659763,-236.45650689,0.00013978,2]
[329859050,1718766659772,-500.0,0.00013978,2]
[329859051,1718766659782,-500.0,0.00013978,2]
[329859052,1718766659791,-1415.42,0.00013978,2]
[329859053,1718766659801,-500.0,0.00013978,2]
[329859054,1718766659811,-288.28782454,0.00013978,2]
[329859055,1718766659820,-500.0,0.00013978,2]
[329859056,1718766659829,-500.0,0.00013978,2]
[329859057,1718766659844,-625.63,0.00013978,2]
[329859058,1718766659854,-500.0,0.00013978,2]
[329859059,1718766659863,-500.0,0.00013978,2]
[329859060,1718766659873,-1192.68,0.00013978,2]
[329859061,1718766659882,-600.42433975,0.00013978,2]
[329859062,1718766659891,-1749.25,0.00013978,2]
[329859063,1718766659900,-821.12,0.00013978,2]
[329859064,1718766659910,-3000.0,0.00013978,2]
[329859065,1718766659919,-595.95,0.00013978,2]
[329859066,1718766659928,-200.89007,0.00013978,2]
[329859067,1718766659937,-200.89007,0.00013978,2]
[329859068,1718766659946,-1456.77,0.00013978,2]
[329859069,1718766659955,-2065.12,0.00013978,2]
[329859070,1718766659965,-302.491135,0.00013978,2]
[329859071,1718766659975,-302.491135,0.00013978,2]
[329859072,1718766659985,-2079.27,0.00013978,2]
[329859073,1718766659994,-151.0,0.00013978,2]
[329859074,1718766660003,-500.0,0.00013978,2]
[329859075,1718766660012,-921.56,0.00013978,2]
[329859076,1718766660022,-151.0,0.00013978,2]
[329859077,1718766660031,-160.587462,0.00013978,2]
[329859078,1718766660040,-161.406682,0.00013978,2]
[329859079,1718766660050,-500.0,0.00013978,2]
[329859080,1718766660059,-151.0,0.00013978,2]
[329859081,1718766660068,-2563.34,0.00013978,2]
[329859082,1718766660077,-2052.52,0.00013978,2]
[329859083,1718766660087,-714.67,0.00013978,2]
[329859084,1718766660096,-151.0,0.00013978,2]
[329859085,1718766660105,-959.03,0.00013978,2]
[329859086,1718766660114,-151.0,0.00013978,2]
[329859087,1718766660124,-500.0,0.00013978,2]
[329859088,1718766660133,-926.224186,0.00013978,2]
[329859089,1718766660142,-2355.59,0.00013978,2]
[329859090,1718766660151,-926.224186,0.00013978,2]
[329859091,1718766660162,-1868.05,0.00013978,2]
[329859092,1718766660171,-500.0,0.00013978,2]
[329859093,1718766660180,-1785.59,0.00013978,2]
[329859094,1718766660189,-1425.1,0.00013978,2]
[329859095,1718766660199,-151.0,0.00013978,2]
[329859096,1718766660209,-1358.57,0.00013978,2]
[329859097,1718766660218,-151.0,0.00013978,2]
[329859098,1718766660229,-151.0,0.00013978,2]
[329859099,1718766660239,-155.160995,0.00013978,2]
[329859100,1718766660248,-2256.55,0.00013978,2]
[329859101,1718766660257,-151.0,0.00013978,2]
[329859102,1718766660267,-151.0,0.00013978,2]
[329859103,1718766660277,-3606.89,0.00013978,2]
[329859104,1718766660287,-500.0,0.00013978,2]
[329859105,1718766660296,-2092.74,0.00013978,2]
[329859106,1718766660305,-821.12,0.00013979,2]
[329859107,1718766660315,-72980.46364887,0.0001398,2]
[329859108,1718766661180,-3792.06220568,0.0001398,2]
[329859109,1718766661191,-11496.6,0.0001398,2]
[329859110,1718766661203,-1395.092109,0.0001398,2]
[329859111,1718766661214,-7180.0,0.0001398,2]
[329859112,1718766661226,-822.66,0.0001398,2]
[329859113,1718766662117,-6207.70780033,0.00013895,2]
[329859114,1718766662131,-745.03904275,0.00013895,2]
[329859115,1718766662144,-382.74315692,0.00013895,2]
[329859116,1718766662154,-500.0,0.00013896,2]
[329859117,1718766662164,-3934.08,0.00013896,2]